fUSD/lending_fUSD_20240415
["ID","MTS","AMOUNT","RATE_DAILY","PERIOD"]
[322684694,1713215439108,-500.0,0.00020832,2]
[322684695,1713215439117,-4971.8029286,0.00020835,2]
[322684696,1713215439126,-4971.8029286,0.00020842,2]
[322684697,1713215439135,-4971.8029286,0.00020849,2]
[322684698,1713215439144,-4971.8029286,0.00020856,2]
[322684699,1713215439153,-4971.8029286,0.00020864,2]
[322684700,1713215439162,-4971.8029286,0.00020871,2]
[322684701,1713215439171,-153.91172638,0.00020878,2]
[322684702,1713215439180,-4971.8029286,0.00020878,2]
[322684703,1713215439189,-4971.8029286,0.00020885,2]
[322684704,1713215439197,-4971.8029286,0.00020893,2]
[322684705,1713215439210,-7500.0,0.00020899,2]
[322684706,1713215439219,-715.91622556,0.00020899,2]
[322684707,1713215439228,-1758.0128585,0.00020899,2]
[322684708,1713215439238,-715.91622554,0.00020899,2]
[322684709,1713215439247,-715.91622554,0.00020899,2]
[322684710,1713215439256,-715.91622554,0.00020899,2]
[322684711,1713215439266,-1758.01285848,0.000209,2]
[322684712,1713215439275,-715.91622554,0.000209,2]
[322684713,1713215439284,-715.91622554,0.000209,2]
[322684714,1713215439293,-715.91622554,0.000209,2]
[322684715,1713215439302,-123711.71637992,0.000209,2]
[322684716,1713215439312,-715.91622554,0.000209,2]
[322684717,1713215439322,-746.37755672,0.000209,2]
[322684718,1713215439332,-1530.13292898,0.000209,2]
[322684719,1713215439341,-902.51313724,0.000209,2]
[322684720,1713215439350,-902.51313724,0.000209,2]
[322684721,1713215439359,-902.51313724,0.000209,2]
[322684722,1713215439368,-1625.78156576,0.000209,2]
[322684723,1713215439377,-902.51313724,0.000209,2]
[322684724,1713215439386,-902.51313724,0.000209,2]
[322684725,1713215439395,-902.51313724,0.000209,2]
[322684726,1713215439403,-902.51313724,0.000209,2]
[322684727,1713215439412,-902.51313724,0.000209,2]
[322684728,1713215439421,-902.51313724,0.000209,2]
[322684729,1713215439429,-902.51313724,0.000209,2]
[322684730,1713215439438,-902.51313724,0.000209,2]
[322684731,1713215439447,-902.51313724,0.000209,2]
[322684732,1713215439461,-902.51313724,0.000209,2]
[322684733,1713215439470,-331.894,0.000209,2]
[322684734,1713215439479,-4971.8029286,0.000209,2]
[322684735,1713215439489,-1758.01285848,0.000209,2]
[322684736,1713215439498,-5507.21140862,0.000209,3]
[322684737,1713215439507,-193.49329167,0.000209,2]
[322684739,1713215439516,-1762.72543783,0.00020917,2]
[322684741,1713215439525,-571.34690523,0.00020918,2]
[322684743,1713215439533,-222.96464595,0.00020918,2]
[322684745,1713215439545,-326.89345365,0.00020918,2]
[322684747,1713215439553,-222.96464595,0.00020919,2]
[322684749,1713215439563,-18248.30216042,0.00020919,2]
[322684751,1713215439573,-276.79929761,0.0002092,2]
[322684753,1713215439581,-826.60092029,0.0002092,2]
[322684755,1713215439591,-10831.42659144,0.0002092,2]
[322684757,1713215439600,-826.60092029,0.0002092,2]
[322684759,1713215439609,-222.96464595,0.0002092,2]
[322684761,1713215439619,-334.44696891,0.00020921,2]
[322684764,1713215439628,-356.61104034,0.00020921,2]
[322684767,1713215439637,-326.89345365,0.00020921,2]
[322684770,1713215439646,-276.79929761,0.00020922,2]
[322684772,1713215439655,-356.61104034,0.00020922,2]
[322684775,1713215439665,-721.11495184,0.00020922,2]
[322684778,1713215439674,-326.89345365,0.00020922,2]
[322684781,1713215439683,-208.02310686,0.00020923,2]
[322684784,1713215439692,-334.44696891,0.00020923,2]
[322684786,1713215439702,-10831.42659144,0.00020923,2]
[322684788,1713215439718,-1762.72543783,0.00020923,2]
[322684790,1713215439727,-1762.72543783,0.00020925,2]
[322684792,1713215439737,-326.89345365,0.00020925,2]
[322684794,1713215439747,-571.34690523,0.00020926,2]
[322684796,1713215439756,-1762.72543783,0.00020926,2]
[322684798,1713215439765,-356.61104034,0.00020926,2]
[322684800,1713215439774,-276.79929761,0.00020927,2]
[322684802,1713215439784,-356.61104034,0.00020927,2]
[322684804,1713215439793,-356.61104034,0.00020928,2]
[322684807,1713215439802,-334.44696891,0.00020928,2]
[322684809,1713215439812,-826.60092029,0.00020928,2]
[322684811,1713215439821,-222.96464595,0.00020931,2]
[322684813,1713215439830,-1143.64812673,0.00020931,2]
[322684815,1713215439840,-10831.42659144,0.00020931,2]
[322684817,1713215439850,-222.96464595,0.00020931,2]
[322684819,1713215439860,-356.61104034,0.00020934,2]
[322684821,1713215439873,-826.60092029,0.00020935,2]
[322684823,1713215439883,-156.81217716,0.00020936,2]
[322684825,1713215439892,-208.02310686,0.00020936,2]
[322684827,1713215439901,-571.34690523,0.00020937,2]
[322684829,1713215439910,-163.902,0.00020938,2]
[322684831,1713215439920,-571.34690523,0.00020939,2]
[322684832,1713215439928,-1143.64812673,0.00020939,2]
[322684834,1713215439937,-222.96464595,0.0002094,2]
[322684836,1713215439948,-524.0,0.0002094,2]
[322684839,1713215439962,-1143.64812673,0.00020941,2]
[322684841,1713215439971,-326.89345365,0.00020941,2]
[322684843,1713215439980,-326.89345365,0.00020941,2]
[322684845,1713215439989,-18248.30216042,0.00020941,2]
[322684846,1713215439998,-334.44696891,0.00020942,2]
[322684848,1713215440008,-1622.50864163,0.00020942,2]
[322684850,1713215440017,-18248.30216042,0.00020942,2]
[322684852,1713215440026,-356.61104034,0.00020942,2]
[322684855,1713215440035,-334.44696891,0.00020943,2]
[322684889,1713215440352,-208.02310686,0.00020945,2]
[322684890,1713215440361,-1143.64812673,0.00020947,2]
[322684891,1713215440370,-1762.72543783,0.00020947,2]
[322684892,1713215440380,-326.89345365,0.00020948,2]
[322684893,1713215440389,-10831.42659144,0.00020949,2]
[322684894,1713215440398,-1762.72543783,0.0002095,2]
[322684895,1713215440407,-276.79929761,0.00020951,2]
[322684896,1713215440416,-721.11495184,0.00020952,2]
[322684897,1713215440425,-222.96464595,0.00020952,2]
[322684898,1713215440435,-826.60092029,0.00020954,2]
[322684899,1713215440445,-208.02310686,0.00020955,2]
[322684900,1713215440458,-571.34690523,0.00020955,2]
[322684901,1713215440468,-18248.30216042,0.00020956,2]
[322684902,1713215440477,-276.79929761,0.00020957,2]
[322684903,1713215440487,-1143.64812673,0.00020958,2]
[322684904,1713215440497,-571.34690523,0.00020958,2]
[322684905,1713215440507,-1622.50864163,0.0002096,2]
[322684906,1713215440517,-334.44696891,0.00020962,2]
[322684907,1713215440526,-334.44696891,0.00020962,2]
[322684908,1713215440535,-721.11495184,0.00020962,2]
[322684909,1713215440545,-356.61104034,0.00020962,2]
[322684910,1713215440554,-222.96464595,0.00020964,2]
[322684911,1713215440563,-721.11495184,0.00020964,2]
[322684912,1713215440573,-10831.42659144,0.00020964,2]
[322684913,1713215440582,-721.11495184,0.00020964,2]
[322684914,1713215440591,-334.44696891,0.00020965,2]
[322684915,1713215440600,-1622.50864163,0.00020966,2]
[322684916,1713215440610,-10831.42659144,0.00020966,2]
[322684917,1713215440619,-208.02310686,0.00020967,2]
[322684918,1713215440629,-721.11495184,0.00020968,2]
[322684919,1713215440638,-1143.64812673,0.00020969,2]
[322684920,1713215440648,-1622.50864163,0.00020969,2]
[322684921,1713215440657,-1000.0,0.0002097,2]
[322684922,1713215440666,-1550.91985744,0.0002097,2]
[322684923,1713215440676,-925.75394071,0.0002097,2]
[322684924,1713215440685,-1000.0,0.0002097,2]
[322684925,1713215440695,-500.0,0.0002097,2]
[322684926,1713215440707,-826.60092029,0.00020971,2]
[322684927,1713215440717,-1762.72543783,0.00020971,2]
[322684928,1713215440726,-1622.50864163,0.00020972,2]
[322684929,1713215440735,-222.96464595,0.00020972,2]
[322684930,1713215440744,-276.79929761,0.00020972,2]
[322684931,1713215440753,-1622.50864163,0.00020972,2]
[322684932,1713215440762,-276.79929761,0.00020973,2]
[322684933,1713215440772,-208.02310686,0.00020974,2]
[322684934,1713215440782,-1622.50864163,0.00020974,2]
[322684935,1713215440792,-571.34690523,0.00020975,2]
[322684936,1713215440801,-721.11495184,0.00020976,2]
[322684937,1713215440811,-1143.64812673,0.00020977,2]
[322684938,1713215440820,-10831.42659144,0.00020977,2]
[322684939,1713215440830,-721.11495184,0.00020978,2]
[322684940,1713215440840,-18248.30216042,0.00020978,2]
[322684941,1713215440849,-1762.72543783,0.00020978,2]
[322684942,1713215440859,-276.79929761,0.00020978,2]
[322684943,1713215440872,-1622.50864163,0.00020979,2]
[322684944,1713215440881,-1622.50864163,0.00020981,2]
[322684945,1713215440891,-571.34690523,0.00020981,2]
[322684946,1713215440900,-721.11495184,0.00020982,2]
[322684947,1713215440910,-10831.42659144,0.00020983,2]
[322684948,1713215440920,-1143.64812673,0.00020984,2]
[322684949,1713215440929,-326.89345365,0.00020986,2]
[322684950,1713215440938,-469.39,0.00020986,2]
[322684951,1713215440949,-276.79929761,0.00020987,2]
[322684952,1713215440959,-826.60092029,0.00020987,2]
[322684953,1713215440969,-1143.64812673,0.00020988,2]
[322684954,1713215440979,-208.02310686,0.00020988,2]
[322684955,1713215440988,-571.34690523,0.00020988,2]
[322684956,1713215440997,-356.61104034,0.0002099,2]
[322684957,1713215441007,-208.02310686,0.0002099,2]
[322684958,1713215441016,-2199.99999901,0.0002099,2]
[322684959,1713215441025,-18248.30216042,0.00020991,2]
[322684960,1713215441035,-18248.30216042,0.00020991,2]
[322684961,1713215441044,-334.44696891,0.00020993,2]
[322684962,1713215441053,-18248.30216042,0.00020993,2]
[322684963,1713215441062,-18248.30216042,0.00020993,2]
[322684964,1713215441072,-326.89345365,0.00020993,2]
[322684965,1713215441081,-10831.42659144,0.00020994,2]
[322684966,1713215441090,-826.60092029,0.00020995,2]
[322684967,1713215441099,-826.60092029,0.00020995,2]
[322684968,1713215441109,-489.44667551,0.00020996,2]
[322684969,1713215441118,-304.80897078,0.00020996,2]
[322684970,1713215441128,-1762.72543783,0.00020997,2]
[322684971,1713215441137,-180.82061113,0.00020997,2]
[322684972,1713215441146,-35203.61271499,0.00020997,2]
[322684973,1713215441155,-7613.05214869,0.00020997,2]
[322684974,1713215441164,-4481.54381727,0.00020997,2]
[322684975,1713215441173,-199.59184815,0.00020998,2]
[322684976,1713215441183,-194.04414374,0.00020998,2]
[322684977,1713215441192,-3466.74189643,0.00020998,2]
[322684978,1713215441201,-542.50421355,0.00020998,2]
[322684979,1713215441213,-554.76345036,0.00020998,2]
[322684980,1713215441222,-161.84491414,0.00020998,2]
[322684981,1713215441232,-155.0,0.00020998,2]
[322684982,1713215441241,-642.58013102,0.00020998,2]
[322684983,1713215441250,-225671.3043324,0.00020998,2]
[322684984,1713215441259,-96908.57333938,0.00020998,2]
[322684985,1713215441268,-5836.6670907,0.00020999,2]
[322684986,1713215441278,-38258.16779892,0.00020999,2]
[322684987,1713215441287,-150.0,0.00020999,2]
[322684988,1713215441296,-12147.44589705,0.00020999,2]
[322684989,1713215441305,-206.9318143,0.00020999,2]
[322684990,1713215441314,-1000.0,0.00020999,2]
[322684991,1713215441323,-500.0,0.00020999,2]
[322684992,1713215441332,-614.39382841,0.00020999,2]
[322684993,1713215441342,-500.0,0.00020999,2]
[322684994,1713215441350,-267.43602983,0.00020999,2]
[322684995,1713215441360,-500.0,0.00020999,2]
[322684996,1713215441370,-200.0,0.00020999,2]
[322684997,1713215441378,-295.70652593,0.00020999,2]
[322684998,1713215441388,-442.16928902,0.00020999,2]
[322684999,1713215441397,-350.0,0.00020999,2]
[322685000,1713215441406,-350.0,0.00020999,2]
[322685001,1713215441415,-385.0,0.00020999,2]
[322685002,1713215441425,-377.98732568,0.00020999,2]
[322685003,1713215441435,-500.0,0.00020999,2]
[322685004,1713215441444,-500.0,0.00020999,2]
[322685005,1713215441455,-171.38775154,0.00020999,2]
[322685006,1713215441464,-500.0,0.00020999,2]
[322685007,1713215441473,-534963.37670577,0.00021,7]
[322685008,1713215441482,-568.8501134,0.00021,2]
[322685009,1713215441490,-208.02310686,0.00021,2]
[322685010,1713215441499,-4330831.60676997,0.00021,2]
[322685011,1713215441508,-150.0,0.00021,2]
[322685012,1713215441517,-1000.64126169,0.00021,2]
[322685013,1713215441526,-38758.66341241,0.00021,2]
[322685014,1713215441535,-150.0,0.00021,2]
[322685015,1713215441544,-482.0,0.00021,3]
[322685016,1713215441553,-964.0,0.00021,3]
[322685017,1713215441562,-479.0,0.00021,3]
[322685018,1713215441571,-372.0,0.00021,2]
[322685019,1713215441580,-745.0,0.00021,2]
[322685020,1713215441590,-1602.52,0.00021,2]
[322685021,1713215441599,-2501.36,0.00021,2]
[322685022,1713215441608,-2100.0,0.00021,2]
[322685023,1713215441618,-300.0,0.00021,2]
[322685024,1713215441627,-30664.0,0.00021,2]
[322685025,1713215441636,-293.66870231,0.00021,2]
[322685026,1713215441645,-28707.38541501,0.00021,2]
[322685027,1713215441660,-305484.44893236,0.00021,2]
[322685028,1713215441876,-6039.44453741,0.00021,2]
[322685029,1713215441986,-6328.75319065,0.00021,2]
[322685061,1713215442745,-350.20615214,0.000209,2]
[322685064,1713215442755,-38214.76862274,0.00021,2]
[322685068,1713215442766,-1591.74397614,0.00021,2]
[322685070,1713215442778,-1396.98278789,0.00021,2]
[322685077,1713215444891,-703.59286444,0.000209,2]
[322685078,1713215444900,-1185.49305971,0.00021,2]
[322685079,1713215444911,-577.75493215,0.00021,2]
[322685080,1713215445066,-3159.3085,0.00021,2]
[322685081,1713215445091,-1199.97834238,0.00021,2]
[322685085,1713215447754,-251.02191574,0.000205,2]
[322685086,1713215447918,-657.45808426,0.000205,2]
[322685087,1713215447928,-400.49948027,0.00020899,2]
[322685088,1713215451844,480.0,0.00016966,14]
[322685090,1713215466409,400.0,0.00016966,14]
[322685091,1713215484740,208.4,0.00016966,14]
[322685092,1713215503338,208.4,0.00016966,14]
[322685093,1713215523514,208.4,0.00016966,14]
[322685094,1713215623542,208.4,0.00020897,14]
[322685095,1713215637188,208.4,0.00020896,14]
[322685096,1713215659328,208.4,0.00020896,14]
[322685097,1713215669655,1039.63439933,0.00016966,2]
[322685098,1713215675534,323.59908073,0.00016966,2]
[322685099,1713215677548,208.4,0.00020896,14]
[322685100,1713215693615,395.53944378,0.00016966,2]
[322685101,1713215695507,202.43783454,0.00016966,2]
[322685102,1713215695582,208.4,0.00020896,14]
[322685103,1713215713308,208.4,0.00020896,14]
[322685104,1713215730480,208.4,0.00020896,14]
[322685105,1713215743501,316.0,0.00020896,14]
[322685106,1713215804663,422.47,0.00017542,2]
[322685113,1713216465635,401.34,0.00017427,2]
[322685130,1713216631998,-966.55573744,0.00018085,2]
[322685131,1713216632009,-247.48349322,0.00018086,2]
[322685132,1713216632021,-389.96978851,0.00018086,2]
[322685133,1713216632031,-616.81603865,0.00018086,2]
[322685134,1713216632041,-155.0,0.00018087,2]
[322685135,1713216632050,-304.98221471,0.00018087,2]
[322685136,1713216632059,-155.0,0.00018088,2]
[322685137,1713216632068,-194.18145296,0.00018088,2]
[322685138,1713216632077,-150.0,0.00018091,2]
[322685139,1713216632087,-3292.88276632,0.00018092,2]
[322685140,1713216632102,-1859.65468419,0.00018092,2]
[322685141,1713216632113,-629.9574,0.00018092,2]
[322685142,1713216632202,-1255.02504,0.00018092,2]
[322685143,1713216632295,-8542.89999,0.00018092,2]
[322685166,1713216638487,-627.35673,0.00018092,2]
[322685167,1713216638524,-571.96254837,0.00018092,2]
[322685171,1713216638585,-1255.748106,0.00018092,2]
[322685173,1713216638596,-445.611,0.00018092,2]
[322685353,1713216640387,-16735.84369298,0.00018092,2]
[322685356,1713216640396,-6489.126,0.00018093,2]
[322685358,1713216640406,-19418.50813824,0.00018189,2]
[322685360,1713216640418,-1550.0,0.00019,3]
[322685362,1713216640430,-8641.38,0.00019266,2]
[322685364,1713216640439,-156.32,0.00019331,2]
[322685366,1713216640451,-1500.0,0.00019344,2]
[322685368,1713216640462,-23900.0,0.00019352,2]
[322685369,1713216640471,-427.2,0.00019366,2]
[322685371,1713216640480,-321.5,0.00019366,2]
[322685373,1713216640490,-500.0,0.00019371,2]
[322685375,1713216640500,-572.8,0.00019403,2]
[322685377,1713216640510,-198.72,0.00019428,2]
[322685379,1713216640520,-401.34,0.00019691,2]
[322685381,1713216640530,-1226.69555058,0.00019794,2]
[322685383,1713216640539,-3162.65,0.00019799,2]
[322685385,1713216640549,-960.9224,0.000198,2]
[322685387,1713216640558,-267.85,0.00019803,2]
[322685389,1713216640567,-1778.9541565,0.000199,2]
[322685391,1713216640576,-680.1627,0.000199,2]
[322685393,1713216640584,-210.0,0.000199,2]
[322685395,1713216640593,-3272.12349534,0.0001993,2]
[322685397,1713216640602,-328.55488336,0.0002,2]
[322685399,1713216640611,-42181.4422309,0.0002,2]
[322685401,1713216640620,-9597.03786654,0.0002,2]
[322685403,1713216640629,-1778.95415641,0.00020056,2]
[322685405,1713216640641,-3272.12349534,0.0002007,2]
[322685407,1713216640650,-1564.5722,0.00020146,2]
[322685409,1713216640660,-150.0,0.000202,2]
[322685411,1713216640669,-150.0,0.000202,2]
[322685413,1713216640678,-1778.95415641,0.00020213,2]
[322685415,1713216640688,-536.0,0.00020246,2]
[322685417,1713216640698,-539.0,0.00020246,2]
[322685419,1713216640707,-3272.12349534,0.00020355,2]
[322685421,1713216640718,-1778.95415641,0.00020369,2]
[322685423,1713216640728,-150.0,0.000204,2]
[322685425,1713216640737,-310.0,0.000204,2]
[322685428,1713216640747,-945.0,0.000204,2]
[322685430,1713216640758,-806.0,0.00020463,2]
[322685432,1713216640768,-1949.0,0.00020463,2]
[322685434,1713216640778,-467.519,0.00020463,2]
[322685435,1713216640788,-175.338,0.00020463,2]
[322685437,1713216640798,-399.0,0.00020463,2]
[322685440,1713216640807,-872.589,0.00020463,2]
[322685441,1713216640816,-214.0,0.00020463,2]
[322685443,1713216640825,-443.0,0.00020463,2]
[322685445,1713216640834,-355.0,0.00020463,2]
[322685447,1713216640844,-1469.0,0.00020463,2]
[322685449,1713216640854,-461.0,0.00020463,2]
[322685451,1713216640864,-5885.0,0.00020463,2]
[322685454,1713216640874,-2292.0,0.00020463,2]
[322685456,1713216640886,-5227.476,0.00020463,2]
[322685458,1713216640895,-968.0,0.00020463,2]
[322685460,1713216640904,-1737.0,0.00020463,2]
[322685462,1713216640912,-37635.0,0.00020463,2]
[322685464,1713216640921,-541.0,0.00020463,2]
[322685466,1713216640930,-150.0,0.000205,2]
[322685468,1713216640939,-1778.95415641,0.00020525,2]
[322685470,1713216640948,-416.392397,0.00020548,2]
[322685472,1713216640957,-150.0,0.00020652,2]
[322685474,1713216640966,-1778.95415641,0.00020682,2]
[322685476,1713216640975,-3272.12349534,0.00020765,2]
[322685478,1713216640984,-411.87074189,0.0002079,2]
[322685480,1713216640992,-321.51010603,0.00020799,2]
[322685482,1713216641001,-715.91622556,0.00020799,2]
[322685484,1713216641010,-5687.9776,0.000208,2]
[322685486,1713216641019,-715.91622554,0.00020813,2]
[322685488,1713216641027,-715.91622554,0.00020828,2]
[322685490,1713216641036,-1000.0,0.00020831,2]
[322685492,1713216641045,-200.0,0.00020832,2]
[322685494,1713216641054,-1000.0,0.00020832,2]
[322685496,1713216641063,-500.0,0.00020832,2]
[322685498,1713216641072,-1778.95415641,0.00020838,2]
[322685500,1713216641080,-715.91622554,0.00020842,2]
[322685502,1713216641089,-715.91622554,0.00020857,2]
[322685504,1713216641098,-715.91622554,0.00020871,2]
[322685506,1713216641107,-715.91622554,0.00020886,2]
[322685508,1713216641116,-170.23,0.00020886,2]
[322685509,1713216641125,-170.23,0.0002089,2]
[322685511,1713216641134,-293.66870231,0.00020896,2]
[322685514,1713216641143,-7613.05214869,0.00020896,2]
[322685516,1713216641152,-155.0,0.00020896,2]
[322685518,1713216641161,-642.58013102,0.00020896,2]
[322685520,1713216641170,-489.44667551,0.00020896,2]
[322685522,1713216641179,-199.59184815,0.00020896,2]
[322685524,1713216641188,-3466.74189643,0.00020896,2]
[322685525,1713216641197,-161.84491414,0.00020896,2]
[322685527,1713216641207,-180.82061113,0.00020896,2]
[322685530,1713216641430,-155.0,0.00020896,2]
[322685532,1713216641439,-9622.36801808,0.00020896,2]
[322685534,1713216641448,-155.6620029,0.00020896,2]
[322685536,1713216641458,-155.7864329,0.00020896,2]
[322685538,1713216641468,-500.0,0.00020896,2]
[322685540,1713216641477,-592.98552299,0.00020896,2]
[322685542,1713216641486,-3377.82594417,0.00020896,2]
[322685544,1713216641496,-430.0771541,0.00020896,2]
[322685546,1713216641506,-225.37794863,0.00020896,2]
[322685548,1713216641516,-231.38201209,0.00020896,2]
[322685550,1713216641526,-174.78,0.00020896,2]
[322685552,1713216641536,-554.76345036,0.00020897,2]
[322685554,1713216641545,-153.91172629,0.00020898,2]
[322685556,1713216641555,-6543.38374597,0.00020898,2]
[322685558,1713216641565,-245000.0,0.00020898,2]
[322685560,1713216641575,-1150.82904676,0.00020899,2]
[322685562,1713216641586,-202.59755443,0.00020899,2]
[322685564,1713216641595,-7500.0,0.000209,2]
[322685566,1713216641605,-331.894,0.000209,2]
[322685568,1713216641615,-2686.34063313,0.000209,2]
[322685570,1713216641625,-1530.13292898,0.000209,2]
[322685572,1713216641637,-5274.03857546,0.000209,2]
[322685574,1713216641646,-8225.26146214,0.000209,2]
[322685577,1713216641657,-62045.5962056,0.000209,2]
[322685579,1713216641668,-902.51313734,0.000209,2]
[322685581,1713216641678,-902.51313724,0.000209,2]
[322685583,1713216641687,-902.51313724,0.000209,2]
[322685585,1713216641696,-902.51313724,0.000209,2]
[322685587,1713216641705,-902.51313724,0.000209,2]
[322685588,1713216641715,-902.51313724,0.000209,2]
[322685590,1713216641726,-902.51313724,0.000209,2]
[322685592,1713216641737,-902.51313724,0.000209,2]
[322685595,1713216641748,-902.51313724,0.000209,2]
[322685596,1713216641758,-902.51313724,0.000209,2]
[322685597,1713216641768,-715.91622554,0.000209,2]
[322685598,1713216641779,-902.51313724,0.000209,2]
[322685599,1713216641788,-13561.21454124,0.000209,2]
[322685600,1713216641797,-194.29480218,0.000209,2]
[322685601,1713216641807,-12544.92933167,0.00020918,2]
[322685602,1713216641817,-3610.47553048,0.00020918,2]
[322685603,1713216641827,-8489.75107379,0.00020918,2]
[322685604,1713216641836,-591.18862328,0.00020919,2]
[322685605,1713216641847,-12544.92933167,0.00020919,2]
[322685606,1713216641858,-363.86591526,0.00020919,2]
[322685608,1713216641868,-204.72115278,0.00020919,2]
[322685610,1713216641878,-275.95552594,0.00020921,2]
[322685612,1713216641891,-591.18862328,0.00020921,2]
[322685614,1713216641900,-439.15989227,0.00020921,2]
[322685616,1713216641911,-439.15989227,0.00020922,2]
[322685618,1713216641921,-363.86591526,0.00020923,2]
[322685620,1713216641930,-8489.75107379,0.00020923,2]
[322685622,1713216641938,-275.95552594,0.00020924,2]
[322685624,1713216641948,-814.57717393,0.00020924,2]
[322685626,1713216641957,-1889.58825342,0.00020925,2]
[322685628,1713216641966,-8489.75107379,0.00020926,2]
[322685630,1713216641977,-204.72115278,0.00020927,2]
[322685632,1713216641987,-667.69902948,0.00020928,2]
[322685634,1713216641997,-667.69902948,0.00020928,2]
[322685636,1713216642007,-287.99600101,0.0002093,2]
[322685638,1713216642018,-195.85838199,0.00020931,2]
[322685640,1713216642029,-8489.75107379,0.00020931,2]
[322685642,1713216642039,-8489.75107379,0.00020931,2]
[322685645,1713216642049,-204.72115278,0.00020932,2]
[322685647,1713216642059,-164.12675326,0.00020932,2]
[322685649,1713216642070,-4434.57281592,0.00020933,2]
[322685650,1713216642079,-164.12675326,0.00020933,2]
[322685653,1713216642089,-12544.92933167,0.00020933,2]
[322685654,1713216642099,-195.85838199,0.00020933,2]
[322685657,1713216642109,-164.12675326,0.00020934,2]
[322685659,1713216642119,-4434.57281592,0.00020934,2]
[322685661,1713216642130,-195.85838199,0.00020934,2]
[322685663,1713216642141,-204.72115278,0.00020935,2]
[322685665,1713216642150,-204.72115278,0.00020935,2]
[322685667,1713216642162,-363.86591526,0.00020935,2]
[322685669,1713216642172,-4434.57281592,0.00020935,2]
[322685671,1713216642182,-312.76985056,0.00020936,2]
[322685673,1713216642191,-156.81217716,0.00020936,2]
[322685675,1713216642201,-591.18862328,0.00020937,2]
[322685677,1713216642210,-1889.58825342,0.00020937,2]
[322685679,1713216642221,-1473.38919172,0.00020938,2]
[322685681,1713216642233,-528.0,0.00020938,2]
[322685683,1713216642243,-565.32702148,0.00020938,2]
[322685685,1713216642252,-195.85838199,0.00020939,2]
[322685687,1713216642262,-667.69902948,0.00020939,2]
[322685689,1713216642272,-204.72115278,0.00020939,2]
[322685691,1713216642282,-4434.57281592,0.00020939,2]
[322685693,1713216642291,-287.99600101,0.0002094,2]
[322685695,1713216642301,-1473.38919172,0.0002094,2]
[322685697,1713216642311,-814.57717393,0.0002094,2]
[322685699,1713216642321,-312.76985056,0.00020941,2]
[322685701,1713216642331,-1473.38919172,0.00020941,2]
[322685703,1713216642342,-287.99600101,0.00020941,2]
[322685705,1713216642351,-195.85838199,0.00020941,2]
[322685707,1713216642360,-195.85838199,0.00020942,2]
[322685709,1713216642370,-591.18862328,0.00020943,2]
[322685711,1713216642379,-667.69902948,0.00020945,2]
[322685713,1713216642391,-565.32702148,0.00020946,2]
[322685715,1713216642400,-275.95552594,0.00020946,2]
[322685717,1713216642410,-12544.92933167,0.00020946,2]
[322685719,1713216642419,-565.32702148,0.00020946,2]
[322685721,1713216642428,-591.18862328,0.00020947,2]
[322685723,1713216642438,-12544.92933167,0.00020947,2]
[322685725,1713216642449,-814.57717393,0.00020948,2]
[322685728,1713216642459,-565.32702148,0.00020949,2]
[322685730,1713216642470,-8489.75107379,0.00020949,2]
[322685732,1713216642479,-3610.47553048,0.0002095,2]
[322685734,1713216642489,-814.57717393,0.0002095,2]
[322685736,1713216642499,-8489.75107379,0.0002095,2]
[322685738,1713216642508,-312.76985056,0.00020952,2]
[322685740,1713216642517,-439.15989227,0.00020953,2]
[322685742,1713216642526,-667.69902948,0.00020953,2]
[322685743,1713216642535,-312.76985056,0.00020954,2]
[322685745,1713216642544,-275.95552594,0.00020954,2]
[322685747,1713216642553,-565.32702148,0.00020954,2]
[322685749,1713216642563,-1473.38919172,0.00020955,2]
[322685752,1713216642573,-211.32506095,0.00020955,2]
[322685754,1713216642582,-667.69902948,0.00020955,2]
[322685755,1713216642591,-439.15989227,0.00020957,2]
[322685757,1713216642600,-814.57717393,0.00020959,2]
[322685759,1713216642609,-439.15989227,0.00020959,2]
[322685762,1713216642619,-667.69902948,0.00020959,2]
[322685763,1713216642628,-591.18862328,0.00020959,2]
[322685765,1713216642639,-204.72115278,0.0002096,2]